[Event "Early-Titled-Tuesday-Blitz-December-26-2023"]
[Site "Chess.com"]
[Date "2023.12.26"]
[Round "1"]
[White "Pendos666"]
[Black "Cheer_Down"]
[Result "1-0"]
[WhiteElo "2841"]
[BlackElo "2488"]
[TimeControl "180+1"]
[EndTime "8:08:24 PST"]
[Termination "Pendos666 won by resignation"]

1. e4 {[%clk 0:03:00.9]} 1... e6 {[%clk 0:03:00]} 2. d4 {[%clk 0:03:00.6]} 2...
d5 {[%clk 0:03:00.6]} 3. Nd2 {[%clk 0:03:00.9]} 3... c5 {[%clk 0:02:59.6]} 4.
exd5 {[%clk 0:03:00.2]} 4... exd5 {[%clk 0:02:59.3]} 5. Ngf3 {[%clk 0:03:00]}
5... Nc6 {[%clk 0:02:58.5]} 6. Bb5 {[%clk 0:02:59.5]} 6... Qe7+ {[%clk 0:02:58]}
7. Qe2 {[%clk 0:02:56.3]} 7... Qxe2+ {[%clk 0:02:55.2]} 8. Bxe2 {[%clk
0:02:55.6]} 8... cxd4 {[%clk 0:02:51.9]} 9. O-O {[%clk 0:02:54.9]} 9... Bd6
{[%clk 0:02:34.3]} 10. Nb3 {[%clk 0:02:51.9]} 10... Nge7 {[%clk 0:02:31.6]} 11.
Nfxd4 {[%clk 0:02:50.6]} 11... O-O {[%clk 0:02:29.9]} 12. Be3 {[%clk 0:02:48.5]}
12... Nf5 {[%clk 0:02:28.6]} 13. Nxf5 {[%clk 0:02:44.1]} 13... Bxf5 {[%clk
0:02:28.4]} 14. c3 {[%clk 0:02:44.1]} 14... Rfe8 {[%clk 0:02:17.2]} 15. Rad1
{[%clk 0:02:42]} 15... Rad8 {[%clk 0:02:16.1]} 16. Rfe1 {[%clk 0:02:32.3]} 16...
h6 {[%clk 0:02:07.2]} 17. Nd4 {[%clk 0:02:08.1]} 17... Bd7 {[%clk 0:02:03.4]}
18. Bf3 {[%clk 0:02:06.1]} 18... Be6 {[%clk 0:01:56.8]} 19. Kf1 {[%clk
0:01:59.2]} 19... Ne5 {[%clk 0:01:54.8]} 20. Be2 {[%clk 0:01:55.9]} 20... a6
{[%clk 0:01:49.3]} 21. h3 {[%clk 0:01:51.8]} 21... Bc8 {[%clk 0:01:48.1]} 22. b3
{[%clk 0:01:38.5]} 22... Nc6 {[%clk 0:01:44.1]} 23. Bf3 {[%clk 0:01:34.4]} 23...
Be5 {[%clk 0:01:43.5]} 24. Rd2 {[%clk 0:01:30.1]} 24... Bf6 {[%clk 0:01:39]} 25.
Red1 {[%clk 0:01:29.3]} 25... Ne5 {[%clk 0:01:39.1]} 26. Be2 {[%clk 0:01:28.4]}
26... Nc6 {[%clk 0:01:37.1]} 27. b4 {[%clk 0:01:23.7]} 27... Ne5 {[%clk
0:01:32.8]} 28. a4 {[%clk 0:01:22.4]} 28... Nc4 {[%clk 0:01:29.3]} 29. Bxc4
{[%clk 0:01:22]} 29... dxc4 {[%clk 0:01:29.2]} 30. a5 {[%clk 0:01:20.8]} 30...
Bxd4 {[%clk 0:01:26.8]} 31. Rxd4 {[%clk 0:01:19.9]} 31... Rxd4 {[%clk 0:01:26]}
32. Rxd4 {[%clk 0:01:19.4]} 32... Be6 {[%clk 0:01:26.6]} 33. Rd6 {[%clk
0:01:17.8]} 33... Rc8 {[%clk 0:01:24]} 34. g4 {[%clk 0:01:12.9]} 34... Kf8
{[%clk 0:01:23.7]} 35. Bd4 {[%clk 0:01:08.4]} 35... h5 {[%clk 0:01:11.4]} 36. f3
{[%clk 0:01:07.5]} 36... hxg4 {[%clk 0:01:11.1]} 37. hxg4 {[%clk 0:01:07.4]}
37... Rc6 {[%clk 0:01:09.5]} 38. Rd8+ {[%clk 0:01:04.7]} 38... Ke7 {[%clk
0:01:09.7]} 39. Rb8 {[%clk 0:01:04.6]} 39... Bd5 {[%clk 0:01:09.9]} 40. Kf2
{[%clk 0:01:02.1]} 40... Rh6 {[%clk 0:01:07.1]} 41. Kg2 {[%clk 0:01:00.4]} 41...
f6 {[%clk 0:01:04.3]} 42. Bc5+ {[%clk 0:00:56.9]} 42... Kd7 {[%clk 0:01:03.1]}
43. Bb6 {[%clk 0:00:57.2]} 43... Bc6 {[%clk 0:01:01.6]} 44. Rg8 {[%clk
0:00:55.8]} 44... Rg6 {[%clk 0:01:00.5]} 45. Kg3 {[%clk 0:00:55.4]} 45... f5
{[%clk 0:00:59.2]} 46. Bd4 {[%clk 0:00:52.7]} 46... fxg4 {[%clk 0:00:59]} 47.
fxg4 {[%clk 0:00:53.6]} 47... Ke7 {[%clk 0:00:57.1]} 48. Bc5+ {[%clk 0:00:52.3]}
48... Kf7 {[%clk 0:00:56.7]} 49. Rf8+ {[%clk 0:00:52.4]} 49... Ke6 {[%clk
0:00:56.1]} 50. Kh4 {[%clk 0:00:51.7]} 50... Bd7 {[%clk 0:00:52.2]} 51. Kh5
{[%clk 0:00:49.1]} 51... Rf6 {[%clk 0:00:50]} 52. Rb8 {[%clk 0:00:46.8]} 52...
Bc6 {[%clk 0:00:48.5]} 53. Bd4 {[%clk 0:00:46.3]} 53... Rf7 {[%clk 0:00:48]} 54.
Rg8 {[%clk 0:00:45.8]} 54... Bd5 {[%clk 0:00:30.6]} 55. Kg5 {[%clk 0:00:43.7]}
55... Be4 {[%clk 0:00:25.2]} 56. Bxg7 {[%clk 0:00:42.6]} 56... Bd3 {[%clk
0:00:22.5]} 57. Bd4 {[%clk 0:00:41.9]} 57... Kd7 {[%clk 0:00:20.3]} 58. Rb8
{[%clk 0:00:40.6]} 58... Ke6 {[%clk 0:00:19.6]} 59. Re8+ {[%clk 0:00:39.2]}
59... Kd7 {[%clk 0:00:19.9]} 60. Re3 {[%clk 0:00:39.1]} 60... Re7 {[%clk
0:00:18.6]} 61. Rf3 {[%clk 0:00:36.8]} 61... Be2 {[%clk 0:00:18.2]} 62. Rf2
{[%clk 0:00:36.2]} 62... Bd1 {[%clk 0:00:17.7]} 63. Kh4 {[%clk 0:00:35.5]} 63...
Re4 {[%clk 0:00:17.5]} 64. Rg2 {[%clk 0:00:35.1]} 64... Ke6 {[%clk 0:00:17.3]}
65. Kh3 {[%clk 0:00:35.2]} 65... Kf7 {[%clk 0:00:16.5]} 66. Rf2+ {[%clk
0:00:34.5]} 66... Kg6 {[%clk 0:00:16.1]} 67. Rf6+ {[%clk 0:00:34.3]} 67... Kg5
{[%clk 0:00:16]} 68. Rf7 {[%clk 0:00:34.6]} 68... Bxg4+ {[%clk 0:00:14.3]} 69.
Kg3 {[%clk 0:00:34.3]} 69... Bf5 {[%clk 0:00:12.8]} 70. Rg7+ {[%clk 0:00:33.4]}
70... Kh6 {[%clk 0:00:12.6]} 71. Rxb7 {[%clk 0:00:33]} 71... Re2 {[%clk
0:00:12.1]} 72. Kf4 {[%clk 0:00:32.8]} 72... Bd3 {[%clk 0:00:11.6]} 73. Rb6+
{[%clk 0:00:32.5]} 73... Kh5 {[%clk 0:00:11.4]} 74. Rxa6 {[%clk 0:00:32.5]}
74... Re4+ {[%clk 0:00:12.1]} 75. Kf3 {[%clk 0:00:32.1]} 75... Re8 {[%clk
0:00:12]} 76. Rb6 {[%clk 0:00:31.4]} 76... Rb8 {[%clk 0:00:09.5]} 1-0

[Event "Early-Titled-Tuesday-Blitz-December-26-2023"]
[Site "Chess.com"]
[Date "2023.12.26"]
[Round "1"]
[White "newyorkmouse"]
[Black "MightyGMpretender"]
[Result "1-0"]
[WhiteElo "2456"]
[BlackElo "2734"]
[TimeControl "180+1"]
[EndTime "8:08:27 PST"]
[Termination "newyorkmouse won by checkmate"]

1. Nf3 {[%clk 0:02:56.5]} 1... d5 {[%clk 0:02:58.8]} 2. c4 {[%clk 0:02:54.2]}
2... e6 {[%clk 0:02:52.6]} 3. d4 {[%clk 0:02:52.5]} 3... Nf6 {[%clk 0:02:52.4]}
4. g3 {[%clk 0:02:52.5]} 4... Bb4+ {[%clk 0:02:51.4]} 5. Bd2 {[%clk 0:02:52.5]}
5... Be7 {[%clk 0:02:52.1]} 6. Bg2 {[%clk 0:02:50.9]} 6... Ne4 {[%clk
0:02:52.5]} 7. Bf4 {[%clk 0:02:49.1]} 7... c6 {[%clk 0:02:49.9]} 8. O-O {[%clk
0:02:48.3]} 8... Nd7 {[%clk 0:02:50.6]} 9. Qc2 {[%clk 0:02:46.6]} 9... g5 {[%clk
0:02:48.8]} 10. Be3 {[%clk 0:02:45.6]} 10... f5 {[%clk 0:02:49.5]} 11. Nfd2
{[%clk 0:02:44.3]} 11... Nd6 {[%clk 0:02:42.8]} 12. Nc3 {[%clk 0:02:37.2]} 12...
O-O {[%clk 0:02:41.8]} 13. f4 {[%clk 0:02:28.1]} 13... g4 {[%clk 0:02:36.9]} 14.
Bf2 {[%clk 0:02:25.8]} 14... Nf6 {[%clk 0:02:37]} 15. c5 {[%clk 0:02:20.6]}
15... Nde4 {[%clk 0:02:31.8]} 16. Ndxe4 {[%clk 0:02:20.2]} 16... dxe4 {[%clk
0:02:32.7]} 17. Rfd1 {[%clk 0:02:17.1]} 17... h5 {[%clk 0:02:31.4]} 18. b4
{[%clk 0:02:14]} 18... Bd7 {[%clk 0:02:30.9]} 19. a4 {[%clk 0:02:13.8]} 19...
Kg7 {[%clk 0:02:27.1]} 20. e3 {[%clk 0:02:11.5]} 20... Rh8 {[%clk 0:02:26.8]}
21. Bf1 {[%clk 0:02:11.3]} 21... h4 {[%clk 0:02:26.1]} 22. b5 {[%clk 0:02:05.8]}
22... Qe8 {[%clk 0:02:21.7]} 23. a5 {[%clk 0:01:54.3]} 23... hxg3 {[%clk
0:02:16.6]} 24. hxg3 {[%clk 0:01:54.1]} 24... Qh5 {[%clk 0:02:16.5]} 25. Bg2
{[%clk 0:01:53.9]} 25... cxb5 {[%clk 0:02:16.2]} 26. d5 {[%clk 0:01:52.3]} 26...
b4 {[%clk 0:02:15.5]} 27. dxe6 {[%clk 0:01:40.1]} 27... Bxe6 {[%clk 0:02:14.7]}
28. Nb5 {[%clk 0:01:39.2]} 28... Rac8 {[%clk 0:02:10.2]} 29. Nd4 {[%clk
0:01:22.3]} 29... Bf7 {[%clk 0:02:01.9]} 30. Nb3 {[%clk 0:01:02.8]} 30... Be8
{[%clk 0:01:57.9]} 31. Qc4 {[%clk 0:00:58]} 31... Bf7 {[%clk 0:01:58.2]} 32.
Qxb4 {[%clk 0:00:57.4]} 32... Rc7 {[%clk 0:01:57]} 33. Rac1 {[%clk 0:00:50.1]}
33... Qh2+ {[%clk 0:01:51.8]} 34. Kf1 {[%clk 0:00:49.8]} 34... Nh5 {[%clk
0:01:52.5]} 35. Nd4 {[%clk 0:00:46.6]} 35... Kg6 {[%clk 0:01:46.5]} 36. Qe1
{[%clk 0:00:38.6]} 36... Rxc5 {[%clk 0:01:43.4]} 37. Rxc5 {[%clk 0:00:37.3]}
37... Bxc5 {[%clk 0:01:43.7]} 38. Qc3 {[%clk 0:00:34.4]} 38... Rc8 {[%clk
0:01:32.4]} 39. Nxf5 {[%clk 0:00:24.8]} 39... Nf6 {[%clk 0:01:03.4]} 40. Nh4+
{[%clk 0:00:21.6]} 40... Kg7 {[%clk 0:01:01.6]} 41. Bxe4 {[%clk 0:00:20.6]}
41... Bf8 {[%clk 0:00:35.8]} 42. Nf5+ {[%clk 0:00:20.5]} 42... Kg8 {[%clk
0:00:33.6]} 43. Qxc8 {[%clk 0:00:19.3]} 43... Nxe4 {[%clk 0:00:34.1]} 44. Ne7+
{[%clk 0:00:12.5]} 44... Kg7 {[%clk 0:00:34.2]} 45. Qxg4+ {[%clk 0:00:13.1]}
45... Kh7 {[%clk 0:00:30.4]} 46. Qf5+ {[%clk 0:00:12.2]} 46... Kg7 {[%clk
0:00:29.1]} 47. Qxe4 {[%clk 0:00:12.4]} 47... Qh3+ {[%clk 0:00:22.9]} 48. Qg2
{[%clk 0:00:12.5]} 48... Qe6 {[%clk 0:00:20.7]} 49. Nd5 {[%clk 0:00:12.4]} 49...
Qc6 {[%clk 0:00:18.3]} 50. e4 {[%clk 0:00:11.1]} 50... Qc2 {[%clk 0:00:18.4]}
51. Qf3 {[%clk 0:00:09.9]} 51... Bc5 {[%clk 0:00:15.8]} 52. Bxc5 {[%clk
0:00:08.9]} 52... Qxc5 {[%clk 0:00:16.7]} 53. Kg2 {[%clk 0:00:08.5]} 53... Kg8
{[%clk 0:00:16.1]} 54. Rd2 {[%clk 0:00:05.9]} 54... Qc1 {[%clk 0:00:16.3]} 55.
Qe2 {[%clk 0:00:05.2]} 55... Kf8 {[%clk 0:00:15.4]} 56. Ne3 {[%clk 0:00:04.7]}
56... Bh5 {[%clk 0:00:14.8]} 57. Qf2 {[%clk 0:00:03.3]} 57... Be8 {[%clk
0:00:14.4]} 58. e5 {[%clk 0:00:03.7]} 58... Bc6+ {[%clk 0:00:14.7]} 59. Kh3
{[%clk 0:00:03.9]} 59... Qh1+ {[%clk 0:00:14.9]} 60. Qh2 {[%clk 0:00:04.5]}
60... Qe1 {[%clk 0:00:15.3]} 61. Ng4 {[%clk 0:00:04.7]} 61... Qf1+ {[%clk
0:00:15.1]} 62. Kh4 {[%clk 0:00:05.2]} 62... Qb1 {[%clk 0:00:15]} 63. Kg5 {[%clk
0:00:05.5]} 63... Kg8 {[%clk 0:00:14.5]} 64. Qh6 {[%clk 0:00:05.5]} 64... Be8
{[%clk 0:00:14.9]} 65. Rd8 {[%clk 0:00:05.2]} 65... Kf7 {[%clk 0:00:14.3]} 66.
Qf6+ {[%clk 0:00:05.1]} 66... Kg8 {[%clk 0:00:14]} 67. Rxe8+ {[%clk 0:00:06]}
67... Kh7 {[%clk 0:00:14.5]} 68. Rh8# {[%clk 0:00:06.9]} 1-0

[Event "Early-Titled-Tuesday-Blitz-December-26-2023"]
[Site "Chess.com"]
[Date "2023.12.26"]
[Round "1"]
[White "Yeritsyaan"]
[Black "Schachmalanders"]
[Result "1/2-1/2"]
[WhiteElo "2665"]
[BlackElo "2381"]
[TimeControl "180+1"]
[EndTime "8:08:28 PST"]
[Termination "Game drawn - insufficient material"]

1. Nf3 {[%clk 0:02:57.3]} 1... c5 {[%clk 0:02:54.3]} 2. e3 {[%clk 0:02:55.9]}
2... d5 {[%clk 0:02:51.5]} 3. d4 {[%clk 0:02:52.2]} 3... Nc6 {[%clk 0:02:49.9]}
4. c3 {[%clk 0:02:47.6]} 4... Nf6 {[%clk 0:02:47.2]} 5. Bd3 {[%clk 0:02:47]}
5... Bg4 {[%clk 0:02:45.1]} 6. Nbd2 {[%clk 0:02:43.6]} 6... e6 {[%clk
0:02:44.5]} 7. O-O {[%clk 0:02:42.5]} 7... Bd6 {[%clk 0:02:42.9]} 8. h3 {[%clk
0:02:41.5]} 8... Bh5 {[%clk 0:02:41.8]} 9. dxc5 {[%clk 0:02:42]} 9... Bxc5
{[%clk 0:02:41.1]} 10. e4 {[%clk 0:02:39.2]} 10... O-O {[%clk 0:02:30]} 11. exd5
{[%clk 0:02:36.1]} 11... Qxd5 {[%clk 0:02:25.6]} 12. Bc4 {[%clk 0:02:34.7]}
12... Qd7 {[%clk 0:02:14.7]} 13. Qc2 {[%clk 0:02:19.7]} 13... Rac8 {[%clk
0:02:11.4]} 14. a4 {[%clk 0:01:46.2]} 14... Rfd8 {[%clk 0:02:02.6]} 15. Be2
{[%clk 0:01:31.1]} 15... Bb6 {[%clk 0:01:53.5]} 16. Nc4 {[%clk 0:01:30]} 16...
Bc7 {[%clk 0:01:50.3]} 17. Bg5 {[%clk 0:01:27.1]} 17... Qe7 {[%clk 0:01:38.8]}
18. Rad1 {[%clk 0:01:23.4]} 18... Bb8 {[%clk 0:01:34.3]} 19. Rxd8+ {[%clk
0:01:16.7]} 19... Rxd8 {[%clk 0:01:33.9]} 20. Rd1 {[%clk 0:01:17.1]} 20... Qc7
{[%clk 0:01:34.2]} 21. Rxd8+ {[%clk 0:01:14.8]} 21... Qxd8 {[%clk 0:01:34.2]}
22. Qd2 {[%clk 0:01:05.7]} 22... Qxd2 {[%clk 0:01:32.9]} 23. Bxd2 {[%clk
0:01:05]} 23... Nd5 {[%clk 0:01:28.6]} 24. g4 {[%clk 0:01:01.3]} 24... Bg6
{[%clk 0:01:28]} 25. Kf1 {[%clk 0:00:51]} 25... Nf4 {[%clk 0:01:25.8]} 26. Bxf4
{[%clk 0:00:48]} 26... Bxf4 {[%clk 0:01:26.7]} 27. Ke1 {[%clk 0:00:45.7]} 27...
Bc2 {[%clk 0:01:21.5]} 28. Bd1 {[%clk 0:00:40.6]} 28... Bd3 {[%clk 0:01:18.4]}
29. Na3 {[%clk 0:00:36.6]} 29... Kf8 {[%clk 0:01:04.5]} 30. Be2 {[%clk
0:00:36.9]} 30... Be4 {[%clk 0:01:01.4]} 31. b4 {[%clk 0:00:35.2]} 31... Ne5
{[%clk 0:00:57.4]} 32. Nxe5 {[%clk 0:00:33.4]} 32... Bxe5 {[%clk 0:00:57]} 33.
Kd2 {[%clk 0:00:23.5]} 33... Bf4+ {[%clk 0:00:55.7]} 34. Kd1 {[%clk 0:00:22.2]}
34... Ke7 {[%clk 0:00:53.2]} 35. f3 {[%clk 0:00:20.2]} 35... Bc6 {[%clk
0:00:51.1]} 36. a5 {[%clk 0:00:18]} 36... Ba4+ {[%clk 0:00:44]} 37. Ke1 {[%clk
0:00:18.1]} 37... Be5 {[%clk 0:00:44.2]} 38. Kd2 {[%clk 0:00:17.7]} 38... Bf4+
{[%clk 0:00:44.3]} 39. Kd3 {[%clk 0:00:17]} 39... Bc1 {[%clk 0:00:43.6]} 40. Nb1
{[%clk 0:00:12.7]} 40... Kd6 {[%clk 0:00:41.5]} 41. c4 {[%clk 0:00:13.2]} 41...
b6 {[%clk 0:00:40.4]} 42. axb6 {[%clk 0:00:12.9]} 42... axb6 {[%clk 0:00:41.3]}
43. Nc3 {[%clk 0:00:13.5]} 43... Bc6 {[%clk 0:00:39.9]} 44. Bd1 {[%clk 0:00:12]}
44... g6 {[%clk 0:00:35.9]} 45. Ne2 {[%clk 0:00:11]} 45... Bh6 {[%clk
0:00:34.7]} 46. Nd4 {[%clk 0:00:10.9]} 46... e5 {[%clk 0:00:32.7]} 47. Nb3
{[%clk 0:00:10.8]} 47... f5 {[%clk 0:00:31.3]} 48. Be2 {[%clk 0:00:10.5]} 48...
e4+ {[%clk 0:00:30.3]} 49. fxe4 {[%clk 0:00:11.4]} 49... Bxe4+ {[%clk
0:00:30.4]} 50. Kd4 {[%clk 0:00:10.7]} 50... Bg7+ {[%clk 0:00:27.6]} 51. Ke3
{[%clk 0:00:11.2]} 51... Bh6+ {[%clk 0:00:28.1]} 52. Kd4 {[%clk 0:00:11.8]}
52... Bg2 {[%clk 0:00:28.4]} 53. gxf5 {[%clk 0:00:11.4]} 53... Bxh3 {[%clk
0:00:26.7]} 54. fxg6 {[%clk 0:00:11.4]} 54... hxg6 {[%clk 0:00:27.6]} 55. Bf3
{[%clk 0:00:10.7]} 55... Bg7+ {[%clk 0:00:26.4]} 56. Kd3 {[%clk 0:00:11]} 56...
g5 {[%clk 0:00:26.8]} 57. c5+ {[%clk 0:00:09.2]} 57... bxc5 {[%clk 0:00:27.2]}
58. bxc5+ {[%clk 0:00:10.1]} 58... Kc7 {[%clk 0:00:27.8]} 59. Nd2 {[%clk
0:00:09]} 59... g4 {[%clk 0:00:27.6]} 60. Be2 {[%clk 0:00:09.4]} 60... g3 {[%clk
0:00:24]} 61. Nf3 {[%clk 0:00:09.1]} 61... Bh6 {[%clk 0:00:21.2]} 62. Ng1 {[%clk
0:00:08.3]} 62... Bf5+ {[%clk 0:00:21.3]} 63. Kd4 {[%clk 0:00:07.4]} 63... Bg7+
{[%clk 0:00:18]} 64. Ke3 {[%clk 0:00:07]} 64... Bf8 {[%clk 0:00:18.4]} 65. Kd4
{[%clk 0:00:06]} 65... Bd7 {[%clk 0:00:18.7]} 66. Bf3 {[%clk 0:00:05.9]} 66...
Bc6 {[%clk 0:00:18.9]} 67. Bxc6 {[%clk 0:00:05.7]} 67... Kxc6 {[%clk 0:00:19.8]}
68. Ke4 {[%clk 0:00:05.2]} 68... Bxc5 {[%clk 0:00:19.9]} 69. Ne2 {[%clk
0:00:05.8]} 69... g2 {[%clk 0:00:20.1]} 70. Kf3 {[%clk 0:00:06.5]} 70... g1=Q
{[%clk 0:00:20.5]} 71. Nxg1 {[%clk 0:00:07.3]} 1/2-1/2

[Event "Early-Titled-Tuesday-Blitz-December-26-2023"]
[Site "Chess.com"]
[Date "2023.12.26"]
[Round "1"]
[White "MidnightFox"]
[Black "Flawless_Fighter"]
[Result "1-0"]
[WhiteElo "2505"]
[BlackElo "2812"]
[TimeControl "180+1"]
[EndTime "8:08:34 PST"]
[Termination "MidnightFox won by resignation"]

1. d4 {[%clk 0:03:00.9]} 1... Nf6 {[%clk 0:02:59.9]} 2. c4 {[%clk 0:03:00.1]}
2... e6 {[%clk 0:03:00.4]} 3. g3 {[%clk 0:02:59.7]} 3... d5 {[%clk 0:03:01.3]}
4. Bg2 {[%clk 0:03:00]} 4... Be7 {[%clk 0:03:02]} 5. Nf3 {[%clk 0:03:00.6]} 5...
O-O {[%clk 0:03:02.7]} 6. O-O {[%clk 0:03:01.1]} 6... c6 {[%clk 0:03:03.5]} 7.
Qc2 {[%clk 0:03:00.1]} 7... b6 {[%clk 0:03:04]} 8. Nbd2 {[%clk 0:03:00.4]} 8...
c5 {[%clk 0:03:04.5]} 9. dxc5 {[%clk 0:02:58.7]} 9... bxc5 {[%clk 0:03:03.9]}
10. cxd5 {[%clk 0:02:57.3]} 10... exd5 {[%clk 0:03:04.8]} 11. b3 {[%clk
0:02:56.4]} 11... Nc6 {[%clk 0:03:03.3]} 12. Bb2 {[%clk 0:02:56.2]} 12... Nb4
{[%clk 0:03:03.5]} 13. Qb1 {[%clk 0:02:53.3]} 13... g6 {[%clk 0:03:00.1]} 14. a3
{[%clk 0:02:43.6]} 14... Bf5 {[%clk 0:02:59.8]} 15. Qd1 {[%clk 0:02:41.3]} 15...
Nc6 {[%clk 0:02:56.7]} 16. e3 {[%clk 0:02:34.8]} 16... Rb8 {[%clk 0:02:31.3]}
17. Rc1 {[%clk 0:02:32.4]} 17... a5 {[%clk 0:02:30.1]} 18. Ne5 {[%clk 0:02:28]}
18... Nxe5 {[%clk 0:02:28]} 19. Bxe5 {[%clk 0:02:28.9]} 19... Rc8 {[%clk
0:02:28]} 20. Qe2 {[%clk 0:02:24.9]} 20... Be6 {[%clk 0:02:17.8]} 21. Rfd1
{[%clk 0:02:23.5]} 21... Qb6 {[%clk 0:02:17.7]} 22. h3 {[%clk 0:02:17]} 22...
Rfd8 {[%clk 0:02:17.5]} 23. Qf3 {[%clk 0:02:10.2]} 23... Nd7 {[%clk 0:02:17.2]}
24. Ba1 {[%clk 0:02:09.4]} 24... Bf8 {[%clk 0:02:14.4]} 25. Qf4 {[%clk
0:02:06.3]} 25... Qc7 {[%clk 0:02:06.1]} 26. Nb1 {[%clk 0:01:47.9]} 26... Qxf4
{[%clk 0:02:05]} 27. gxf4 {[%clk 0:01:48.8]} 27... Nb6 {[%clk 0:02:03.5]} 28.
Nc3 {[%clk 0:01:46.4]} 28... Bg7 {[%clk 0:02:03.9]} 29. Nb5 {[%clk 0:01:36]}
29... Bxa1 {[%clk 0:02:02.8]} 30. Rxa1 {[%clk 0:01:35.9]} 30... d4 {[%clk
0:01:48.4]} 31. exd4 {[%clk 0:01:32]} 31... Bxb3 {[%clk 0:01:48.6]} 32. Rd2
{[%clk 0:01:24.7]} 32... Nc4 {[%clk 0:01:35.2]} 33. Rd3 {[%clk 0:01:22.7]} 33...
a4 {[%clk 0:01:35.4]} 34. d5 {[%clk 0:01:13.8]} 34... Nd6 {[%clk 0:01:27.9]} 35.
Nc3 {[%clk 0:01:10.6]} 35... c4 {[%clk 0:01:22.7]} 36. Rd2 {[%clk 0:01:04.9]}
36... Rb8 {[%clk 0:01:22.7]} 37. Rc1 {[%clk 0:00:56.8]} 37... Kg7 {[%clk
0:01:21.8]} 38. Kh2 {[%clk 0:00:52.1]} 38... Nb5 {[%clk 0:01:21.7]} 39. Nxb5
{[%clk 0:00:44.3]} 39... Rxb5 {[%clk 0:01:22.6]} 40. d6 {[%clk 0:00:44.9]} 40...
Rc5 {[%clk 0:01:18.8]} 41. Rc3 {[%clk 0:00:41.7]} 41... Rd7 {[%clk 0:01:17.8]}
42. Kg3 {[%clk 0:00:37.2]} 42... f5 {[%clk 0:01:17.2]} 43. Rd4 {[%clk
0:00:33.1]} 43... Kf6 {[%clk 0:01:17]} 44. Bf3 {[%clk 0:00:30]} 44... Rc8 {[%clk
0:01:16]} 45. Be2 {[%clk 0:00:26.2]} 45... Rc6 {[%clk 0:00:57.1]} 46. Bxc4
{[%clk 0:00:22.4]} 46... h5 {[%clk 0:00:26.4]} 47. h4 {[%clk 0:00:20.2]} 47...
Kg7 {[%clk 0:00:23.3]} 48. Kf3 {[%clk 0:00:11.9]} 48... Kf6 {[%clk 0:00:18.8]}
49. Kg3 {[%clk 0:00:12.2]} 49... Rc5 {[%clk 0:00:17.5]} 50. Kf3 {[%clk
0:00:09.7]} 50... Rc8 {[%clk 0:00:17.6]} 51. Kg3 {[%clk 0:00:10.1]} 51... Rb8
{[%clk 0:00:16.1]} 52. Be2 {[%clk 0:00:07]} 52... Rb6 {[%clk 0:00:13.3]} 53.
Rcd3 {[%clk 0:00:05.6]} 53... Bc2 {[%clk 0:00:11.2]} 54. Rd2 {[%clk 0:00:05.9]}
54... Be4 {[%clk 0:00:11.2]} 55. f3 {[%clk 0:00:06.2]} 55... Bc6 {[%clk
0:00:10.7]} 56. Bc4 {[%clk 0:00:06.8]} 56... Rb1 {[%clk 0:00:09.7]} 57. Re2
{[%clk 0:00:07.1]} 57... Kg7 {[%clk 0:00:08.6]} 58. Re8 {[%clk 0:00:05.4]} 58...
Rg1+ {[%clk 0:00:04.1]} 59. Kf2 {[%clk 0:00:05]} 59... Rc1 {[%clk 0:00:05]} 60.
Rg8+ {[%clk 0:00:04.6]} 60... Kh7 {[%clk 0:00:05.4]} 61. Rc8 {[%clk 0:00:05.4]}
61... Rc2+ {[%clk 0:00:04.2]} 62. Kg3 {[%clk 0:00:04.9]} 62... Rc1 {[%clk
0:00:01.2]} 63. Rxc6 {[%clk 0:00:04.4]} 63... Rg1+ {[%clk 0:00:01.9]} 64. Kf2
{[%clk 0:00:04.7]} 64... Ra1 {[%clk 0:00:02.8]} 65. Rc7 {[%clk 0:00:05.1]} 65...
Rxc7 {[%clk 0:00:03.2]} 66. dxc7 {[%clk 0:00:06]} 1-0